bitfinex-derivatives/quotes_SOLF0:USTF0_20250823
["timestamp","ask_amount","ask_price","bid_price","bid_amount"]
[1755923596936,134.16,200.33,200.25,13.90476138]
[1755923597132,134.16,200.33,200.26,9.82914228]
[1755923597338,134.14,200.36,200.27,9.08753339]
[1755923597638,134.14,200.35,200.28,12.67371579]
[1755923597936,2.76,200.38,200.29,14.81811579]
[1755923598133,2.76,200.36,200.3,9.82371579]
[1755923598437,6.75685169,200.32,200.2,0.35]
[1755923598639,135.96,200.31,200.22,4.9962]
[1755923599138,6.75685169,200.32,200.22,4.9962]
[1755923599432,135.92,200.3,200.2,0.35]
[1755923599638,135.84,200.29,200.2,0.35]
[1755923599827,6.75685169,200.32,200.2,0.35]
[1755923600034,135.84,200.31,200.21,4.9965]
[1755923602632,135.44,200.3,200.23,4.9959]
[1755923602836,135.42,200.29,200.23,4.9959]
[1755923603036,2.51,200.33,200.23,4.9959]
[1755923603237,135.38,200.32,200.23,4.9959]
[1755923603435,135.38,200.31,200.23,4.9959]
[1755923603935,2.51,200.33,200.24,2.85]
[1755923604137,2.51,200.42,200.28,2.85]
[1755923605745,2.51,200.42,200.31,4.9938]
[1755923607445,135.6,200.41,200.31,7.8438]
[1755923608546,135.38,200.4,200.31,7.8438]
[1755923610345,135.28,200.41,200.31,7.5538]
[1755923610545,135.28,200.41,200.31,5.3438]
[1755923611437,2.5,200.4,200.31,2.85]
[1755923612347,137.42,200.4,200.31,2.85]
[1755923613549,137.42,200.4,200.31,0.55]
[1755923613950,137.42,200.4,200.31,0.4]
[1755923614351,2.5,200.4,200.31,0.4]
[1755923614551,0.64008605,200.43,200.34,4.993]
[1755923614747,0.64008605,200.43,200.33,6.75685169]
[1755923615248,0.64008605,200.43,200.35,4.9928]
[1755923615950,0.64008605,200.43,200.35,7.8628]
[1755923616854,0.64008605,200.43,200.35,5.3628]
[1755923618551,2.86,200.42,200.35,2.87]
[1755923618750,2.86,200.42,200.35,0.37]
[1755923619750,2.86,200.42,200.33,2.8634]
[1755923619952,2.86,200.42,200.35,4.9929]
[1755923621357,2.86,200.42,200.32,4.9936]
[1755923621850,2.86,200.42,200.32,7.8636]
[1755923622355,2.86,200.42,200.34,4.9932]
[1755923624948,2.86,200.42,200.36,4.9927]
[1755923627759,2.86,200.42,200.34,4.9932]
[1755923629563,2.86,200.42,200.34,4.2532]
[1755923629758,2.86,200.42,200.31,117.59377432]
[1755923629960,2.86,200.42,200.31,125.45757432]
[1755923630160,2.86,200.42,200.31,123.64757432]
[1755923630861,2.86,200.42,200.33,4.9934]
[1755923631567,2.86,200.42,200.31,123.64777432]
[1755923631765,2.86,200.42,200.31,121.14777432]
[1755923632967,2.86,200.41,200.31,0.37]
[1755923634059,4.11385885,200.39,200.29,4.9945]
[1755923634260,2.86,200.38,200.29,2.4945]
[1755923637567,2.86,200.38,200.31,1.24]
[1755923637764,2.86,200.38,200.3,3.734]
[1755923639271,2.86,200.38,200.31,9.34386604]
[1755923639468,2.86,200.38,200.3,3.734]
[1755923639668,2.86,200.38,200.31,9.34382386]
[1755923639871,2.86,200.38,200.28,4.9947]
[1755923640064,2.86,200.38,200.29,9.34382386]
[1755923640264,2.86,200.38,200.3,9.34382386]
[1755923640466,2.86,200.38,200.31,9.34382386]
[1755923640772,2.86,200.38,200.28,4.9947]
[1755923640969,2.86,200.38,200.29,9.34600351]
[1755923641163,2.86,200.37,200.3,6.84600351]
[1755923641368,2.86,200.37,200.26,4.9952]
[1755923641673,132.46,200.36,200.27,6.75188237]
[1755923641869,132.46,200.36,200.28,4.81326257]
[1755923642068,2.86,200.37,200.29,4.81326257]
[1755923642268,132.46,200.36,200.26,4.9952]
[1755923642469,132.46,200.36,200.27,4.81473243]
[1755923642668,2.86,200.35,200.28,4.81473243]
[1755923642872,2.86,200.32,200.19,125.35211984]
[1755923643073,2.86,200.32,200.2,6.75865949]
[1755923643274,2.86,200.32,200.21,6.75865949]
[1755923643470,2.86,200.32,200.22,2.5682407]
[1755923643668,2.86,200.32,200.23,2.5682407]
[1755923643874,2.75,200.29,200.16,4.11385885]
[1755923644074,2.75,200.29,200.17,6.08332907]
[1755923644272,2.75,200.29,200.18,6.08332907]
[1755923644474,2.75,200.29,200.19,10.19702514]
[1755923644664,2.75,200.29,200.2,1.94173014]
[1755923644871,2.75,200.29,200.19,4.11385885]
[1755923645071,2.75,200.29,200.2,1.94215423]
[1755923645365,2.75,200.29,200.19,4.11385885]
[1755923645574,2.75,200.29,200.22,4.9962]
[1755923646777,2.75,200.29,200.23,4.9957]
[1755923647778,132.16,200.31,200.23,4.9957]
[1755923647976,2.75,200.3,200.21,4.9964]
[1755923648279,6.86385885,200.3,200.21,2.4964]
[1755923648678,2.75,200.29,200.21,2.4964]
[1755923648878,2.75,200.29,200.23,4.996]
[1755923649081,132.22,200.3,200.18,4.11385885]
[1755923649278,132.22,200.3,200.19,1.9444252]
[1755923649580,132.22,200.3,200.2,1.9444252]
[1755923649784,132.22,200.3,200.21,1.9444252]
[1755923649972,132.22,200.3,200.18,4.11385885]
[1755923650182,132.18,200.31,200.23,4.9959]
[1755923650376,132.14,200.31,200.23,4.9959]
[1755923652081,338.41,200.33,200.23,4.9959]
[1755923652278,131.96,200.32,200.23,4.9959]
[1755923652882,338.41,200.33,200.25,4.9955]
[1755923653181,470.31,200.33,200.22,24.9808]
[1755923653381,470.31,200.33,200.23,4.51276634]
[1755923653680,470.31,200.33,200.22,24.9808]
[1755923653882,470.31,200.33,200.24,4.9956]
[1755923654982,470.31,200.33,200.25,4.9953]
[1755923655684,470.31,200.33,200.27,4.9949]
[1755923656584,134.41,200.32,200.27,4.9949]
[1755923656786,2.75,200.31,200.27,4.9949]
[1755923657177,2.75,200.3,200.27,4.9949]
[1755923657382,2.75,200.31,200.21,4.11385885]
[1755923657582,2.75,200.31,200.19,24.985]
[1755923657879,2.75,200.31,200.2,9.28861341]
[1755923658085,2.75,200.31,200.24,4.9955]
[1755923660379,2.75,200.35,200.26,24.9762]
[1755923660582,131.48,200.34,200.26,24.9762]
[1755923661589,131.48,200.34,200.31,4.9938]
[1755923662787,2.75,200.35,200.27,4.11385885]
[1755923662985,131.38,200.36,200.28,4.5272883]
[1755923663187,131.38,200.36,200.27,4.11385885]
[1755923663489,131.38,200.36,200.28,4.527367]
[1755923663682,131.38,200.36,200.27,4.11385885]
[1755923663881,2.75,200.42,200.33,4.9933]
[1755923664087,2.75,200.4,200.33,4.9933]
[1755923664477,2.75,200.42,200.36,4.9927]
[1755923664679,2.75,200.4,200.36,4.9927]
[1755923665699,2.75,200.4,200.37,4.9923]
[1755923666592,2.75,200.39,200.37,4.9923]
[1755923667593,133.77,200.4,200.37,4.9923]
[1755923670491,2.75,200.4,200.37,4.9923]
[1755923670792,2.75,200.39,200.37,4.9923]
[1755923671688,2.75,200.39,200.35,4.9933]
[1755923673091,2.75,200.39,200.36,4.9928]
[1755923674095,8.605e-05,200.43,200.41,4.9916]
[1755923674295,2.69,200.56,200.38,24.9627]
[1755923674296,2.69,200.56,200.42,15.31676065]
[1755923674486,131.78,200.55,200.43,9.27372973]
[1755923674790,131.78,200.55,200.44,4.52762699]
[1755923675092,4.11385885,200.66,200.49,4.11385885]
[1755923675288,2.69,200.64,200.5,5.12384123]
[1755923675487,2.69,200.64,200.51,5.12384123]
[1755923675782,2.69,200.64,200.52,5.12384123]
[1755923676087,131.96,200.63,200.53,5.12384123]
[1755923676292,2.69,200.62,200.54,5.12384123]
[1755923676494,2.69,200.62,200.49,4.11385885]
[1755923676689,2.69,200.62,200.53,4.9886]
[1755923676886,2.69,200.62,200.54,5.10639838]
[1755923677089,2.69,200.62,200.53,4.9886]
[1755923677388,2.69,200.62,200.55,4.9883]
[1755923678189,2.69,200.62,200.48,24.9503]
[1755923678493,2.69,200.62,200.49,9.21630881]
[1755923678795,2.69,200.62,200.5,5.10244996]
[1755923678992,2.69,200.62,200.51,5.10244996]
[1755923679192,2.69,200.62,200.49,4.11385885]
[1755923679193,2.69,200.62,200.52,5.09759447]
[1755923679393,2.69,200.62,200.53,5.09759447]
[1755923679593,2.69,200.62,200.55,4.9882]
[1755923680404,131.68,200.61,200.55,4.9882]
[1755923681504,2.69,200.62,200.55,4.9882]
[1755923681805,134.23,200.62,200.55,4.9882]
[1755923682102,2.69,200.61,200.52,2.4889]
[1755923682405,2.69,200.61,200.53,5.08477836]
[1755923682697,2.69,200.61,200.49,4.9898]
[1755923682902,2.69,200.61,200.5,5.08481617]
[1755923683102,2.69,200.61,200.51,5.08481617]
[1755923683304,2.69,200.61,200.52,5.08481617]
[1755923683505,2.69,200.61,200.49,4.9898]
[1755923683706,2.69,200.61,200.5,5.08279874]
[1755923683907,2.69,200.58,200.46,4.9904]
[1755923684106,2.69,200.58,200.47,5.08341819]
[1755923684308,2.69,200.58,200.43,24.9568]
[1755923684309,2.69,200.58,200.48,5.08341819]
[1755923684602,2.69,200.55,200.42,4.11385885]
[1755923684905,2.69,200.53,200.43,5.08308656]
[1755923685100,2.69,200.53,200.44,10.07418656]
[1755923685306,2.69,200.53,200.45,5.08308656]
[1755923685504,2.69,200.53,200.46,5.08308656]
[1755923685805,2.69,200.53,200.47,5.08308656]
[1755923686008,134.03,200.54,200.48,5.08308656]
[1755923686206,134.03,200.54,200.44,4.9911]
[1755923686506,134.03,200.54,200.45,5.08257979]
[1755923686708,134.03,200.54,200.46,5.08257979]
[1755923686901,134.03,200.54,200.47,5.08257979]
[1755923687109,2.69,200.53,200.41,2.4916]
[1755923687304,2.69,200.53,200.42,5.0811382]
[1755923687509,131.1,200.52,200.39,160.83050043]
[1755923687699,131.1,200.52,200.4,10.08893663]
[1755923688006,131.1,200.52,200.41,10.08893663]
[1755923688210,131.1,200.52,200.42,5.07791688]
[1755923688403,2.69,200.53,200.43,5.07791688]
[1755923688609,2.69,200.53,200.44,5.07791688]
[1755923688809,2.69,200.53,200.45,5.07791688]
[1755923689010,2.69,200.53,200.46,5.07791688]
[1755923689212,2.69,200.53,200.47,5.07791688]
[1755923689504,2.69,200.52,200.48,5.07791688]
[1755923689709,2.69,200.52,200.49,5.07791688]
[1755923689906,2.69,200.52,200.43,4.9913]
[1755923690105,2.69,200.52,200.44,5.06360986]
[1755923690308,2.69,200.52,200.45,5.06360986]
[1755923690608,2.69,200.52,200.43,4.9913]
[1755923690609,2.69,200.52,200.46,5.06360986]
[1755923690810,2.69,200.51,200.47,5.06360986]
[1755923691007,2.69,200.51,200.48,5.06360986]
[1755923691216,2.69,200.51,200.43,4.9913]
[1755923691217,2.69,200.51,200.49,5.06360986]
[1755923691511,2.69,200.51,200.43,4.9913]
[1755923691711,2.69,200.51,200.44,5.06365943]
[1755923691909,2.69,200.51,200.45,5.06365943]
[1755923692108,2.69,200.5,200.46,5.06365943]
[1755923692311,2.69,200.5,200.47,5.06365943]
[1755923692509,2.69,200.5,200.48,5.06365943]
[1755923692712,2.69,200.5,200.49,5.06365943]
[1755923693207,2.69,200.5,200.4,4.9919]
[1755923693518,2.69,200.5,200.41,2.5663954]
[1755923693807,2.69,200.5,200.4,4.9919]
[1755923695310,133.27,200.5,200.4,4.9919]
[1755923696611,2.69,200.5,200.4,4.9919]
[1755923696806,133.15,200.5,200.4,4.9919]
[1755923697010,133.13,200.5,200.4,4.9919]
[1755923697211,2.69,200.5,200.4,4.9919]
[1755923698416,133.01,200.5,200.4,4.9919]
[1755923698617,2.69,200.55,200.41,5.03811154]
[1755923698818,133.01,200.55,200.42,9.15197039]
[1755923699016,133.01,200.55,200.43,5.03811154]
[1755923699211,133.01,200.55,200.44,5.03811154]
[1755923699412,2.69,200.55,200.45,5.03793387]
[1755923699609,133.05,200.55,200.46,4.9906]
[1755923700208,2.69,200.53,200.43,4.9912]
[1755923700510,2.69,200.53,200.44,5.04076444]
[1755923700707,2.69,200.53,200.45,5.04076444]
[1755923700913,2.69,200.53,200.43,4.9912]
[1755923701111,2.69,200.53,200.44,5.04233828]
[1755923701315,2.69,200.53,200.45,5.04233828]
[1755923701612,2.69,200.53,200.43,4.9912]
[1755923701813,2.69,200.53,200.44,5.0415334]
[1755923702014,130.28,200.52,200.45,5.0415334]
[1755923702312,130.28,200.52,200.43,4.9912]
[1755923702512,130.28,200.52,200.44,5.04435944]
[1755923702712,130.28,200.52,200.45,5.04435944]
[1755923702915,130.28,200.52,200.43,4.9912]
[1755923703114,130.28,200.52,200.44,5.04435619]
[1755923703309,130.28,200.52,200.45,5.04435619]
[1755923703514,130.28,200.52,200.46,5.04435619]
[1755923703711,130.28,200.52,200.43,4.9912]
[1755923703912,2.63,200.51,200.44,5.04680231]
[1755923704112,2.63,200.51,200.45,5.04680231]
[1755923704313,130.28,200.52,200.46,5.04680231]
[1755923704513,2.63,200.5,200.43,4.9912]
[1755923704712,2.63,200.5,200.44,5.0501895]
[1755923704912,134.39385885,200.52,200.45,2.5501895]
[1755923705112,2.63,200.51,200.39,135.86890043]
[1755923705618,2.63,200.51,200.4,5.05892089]
[1755923705918,2.63,200.51,200.41,5.05892089]
[1755923706113,2.63,200.51,200.42,5.05892089]
[1755923706314,2.63,200.51,200.43,5.05892089]
[1755923706623,2.63,200.51,200.44,5.05892089]
[1755923706919,132.51,200.51,200.45,5.05892089]
[1755923707224,129.88,200.51,200.46,5.05892089]
[1755923707519,2.63,200.49,200.47,5.05892089]
[1755923707719,129.88,200.51,200.48,5.05892089]
[1755923707918,132.51,200.51,200.49,5.05892089]
[1755923708225,132.53,200.51,200.5,5.05892089]
[1755923708518,2.63,200.51,200.5,5.05892089]
[1755923708723,132.49,200.51,200.5,5.05892089]
[1755923709412,2.63,200.51,200.5,5.05892089]
[1755923709617,132.41,200.51,200.5,5.05892089]
[1755923710116,423.2392082,200.56,200.5,5.05892089]
[1755923710321,87.7992082,200.56,200.51,5.05892089]
[1755923710519,87.7992082,200.56,200.52,5.05892089]
[1755923710722,87.7992082,200.56,200.53,5.05892089]
[1755923710921,87.7992082,200.56,200.54,5.05892089]
[1755923711121,87.7992082,200.56,200.55,5.05892089]
[1755923713622,2.63,200.65,200.55,5.05892089]
[1755923713827,2.63,200.65,200.51,4.11385885]
[1755923714028,2.63,200.65,200.56,4.9881]
[1755923714222,2.63,200.65,200.57,5.06520841]
[1755923714420,2.63,200.65,200.58,5.06410697]
[1755923714630,2.63,200.64,200.59,5.06410697]
[1755923714830,2.63,200.63,200.6,5.06410697]
[1755923715128,132.27,200.63,200.61,5.06410697]
[1755923715319,132.27,200.63,200.62,5.06410697]
[1755923715725,132.27,200.63,200.62,2.56410697]
[1755923716227,2.63,200.63,200.62,2.56410697]
[1755923716529,132.19,200.63,200.62,2.56410697]
[1755923717333,2.63,200.68,200.62,2.56410697]
[1755923717628,129.56,200.67,200.54,24.9429]
[1755923717928,129.56,200.67,200.55,5.01215508]
[1755923718128,129.56,200.67,200.56,5.01215508]
[1755923718331,129.56,200.67,200.57,5.01215508]
[1755923718534,129.56,200.67,200.59,4.9874]
[1755923719033,129.44,200.67,200.61,4.9868]
[1755923719529,2.63,200.68,200.61,4.9868]
[1755923720628,2.63,200.76,200.59,29.05075885]
[1755923720931,2.63,200.79,200.65,4.11385885]
[1755923721130,129.34,200.78,200.66,5.00772113]
[1755923721325,129.34,200.78,200.65,4.11385885]
[1755923721326,129.34,200.78,200.67,5.00772113]
[1755923721521,2.63,200.79,200.66,4.11385885]
[1755923721722,2.63,200.79,200.67,4.99885753]
[1755923721926,2.63,200.79,200.68,4.99885753]
[1755923722125,2.63,200.79,200.69,4.99885753]
[1755923722425,335.32,200.9,200.69,4.99885753]
[1755923722426,4.11385885,200.84,200.7,4.98928532]
[1755923722630,2.63,200.83,200.71,4.98928532]
[1755923722828,2.63,200.83,200.69,4.11385885]
[1755923723032,2.63,200.8,200.66,4.11385885]
[1755923723227,2.63,200.8,200.67,4.99190873]
[1755923723430,2.63,200.8,200.68,4.99190873]
[1755923723733,2.63,200.77,200.62,1.61385885]
[1755923724035,131.06,200.76,200.63,29.92256692]
[1755923724230,131.06,200.76,200.64,4.99096692]
[1755923724432,2.63,200.77,200.68,4.9851]
[1755923724640,133.73,200.77,200.68,4.9851]
[1755923724936,133.69,200.77,200.68,4.9851]
[1755923725136,133.65,200.77,200.68,4.9851]
[1755923725336,2.63,200.83,200.71,4.11385885]
[1755923725731,2.63,200.83,200.74,4.11385885]
[1755923726636,2.63,200.83,200.74,9.09745885]
[1755923726840,2.63,200.93,200.85,24.9038]
[1755923727040,2.63,200.93,200.85,4.9808]
[1755923727329,9.09105885,201.01,200.83,24.9063]
[1755923727330,2.63,200.98,200.83,24.9063]
[1755923727534,134.79,200.97,200.83,4.11385885]
[1755923727737,134.79,200.97,200.84,9.96441041]
[1755923727932,134.79,200.97,200.85,4.98341041]
[1755923728132,134.79,200.97,200.83,4.11385885]
[1755923728133,2.63,200.97,200.86,4.98341041]
[1755923728339,134.77,200.97,200.87,4.98341041]
[1755923728635,2.63,200.97,200.88,4.98341041]
[1755923728838,2.63,200.97,200.89,4.98341041]
[1755923729026,2.63,200.97,200.9,4.98341041]
[1755923729230,2.63,200.97,200.84,29.8867]
[1755923729427,2.63,200.97,200.85,4.96693837]
[1755923729638,2.63,200.97,200.86,4.96693837]
[1755923729832,2.63,200.97,200.87,4.96693837]
[1755923730137,2.63,200.97,200.84,4.981]
[1755923730341,2.63,200.97,200.85,4.96033685]
[1755923730543,2.63,201.04,200.9,6.71520247]
[1755923730738,2.63,201.04,200.91,4.96033685]
[1755923730937,2.63,201.04,200.92,4.96033685]
[1755923731240,2.63,201.03,200.89,4.9797]
[1755923731839,2.63,201.03,200.9,4.94914689]
[1755923732139,2.63,201.1,200.98,6.71520247]
[1755923732338,2.63,201.1,201.01,24.8846]
[1755923732538,0.58905926,201.11,201.01,24.8846]
[1755923732539,0.58905926,201.11,201.05,4.9757]
[1755923732735,0.58905926,201.11,201.06,4.93924288]
[1755923733044,0.58905926,201.11,201.07,4.93924288]
[1755923733248,0.58905926,201.11,201.08,4.93924288]
[1755923733435,0.58905926,201.11,201.09,4.93924288]
[1755923733633,0.58905926,201.11,201.02,4.9767]
[1755923733836,0.58905926,201.11,201.03,4.91466856]
[1755923734040,0.58905926,201.11,201.04,4.91466856]
[1755923734237,5.926e-05,201.11,201.06,31.59360247]
[1755923734538,5.926e-05,201.11,201.07,4.91466856]
[1755923734737,2.887e-05,201.12,201.09,49.7494]
[1755923734939,2.71,201.26,201.11,6.71520247]
[1755923735234,134.42,201.31,201.15,31.58250247]
[1755923735235,2.71,201.31,201.15,31.58250247]
[1755923735544,2.71,201.31,201.16,4.91466856]
[1755923735736,2.71,201.31,201.17,34.75276856]
[1755923736040,2.71,201.31,201.18,4.91466856]
[1755923736241,2.71,201.31,201.19,4.91466856]
[1755923736441,2.71,201.31,201.2,4.86652688]
[1755923736643,2.71,201.31,201.17,4.9729]
[1755923736841,2.71,201.31,201.18,2.64765213]
[1755923737037,2.71,201.31,201.19,2.64765213]
[1755923737245,2.71,201.31,201.18,4.9727]
[1755923737646,2.71,201.31,201.15,31.58250247]
[1755923738348,2.71,201.31,201.15,36.55580247]
[1755923738544,6.71520247,201.19,200.93,0.17]
[1755923738845,21.64520247,201.28,200.88,29.28620247]
[1755923738846,2.71,201.1,200.88,29.28620247]
[1755923739548,2.71,201.1,200.95,24.8922]
[1755923740644,2.71,201.1,200.95,29.8705]
[1755923741854,2.71,201.1,200.91,24.8971]
[1755923742053,2.71,201.1,200.94,24.8936]
[1755923742440,2.71,201.1,200.96,4.978]
[1755923743342,2.71,201.17,201.06,24.8786]
[1755923743543,2.71,201.17,200.88,10.51293057]
[1755923743544,2.71,201.17,201.0,10.51293057]
[1755923744248,2.71,201.17,201.01,29.8619]
[1755923744560,2.71,201.17,201.0,10.51293057]
[1755923744760,2.71,201.17,200.97,24.8897]
[1755923744959,2.71,201.17,200.98,4.9777]
[1755923745254,2.71,201.17,200.97,24.8897]
[1755923745461,2.71,201.23,201.0,10.51293057]
[1755923745654,2.71,201.23,201.08,24.8761]
[1755923746256,2.71,201.23,201.09,29.8498]
[1755923746451,2.71,201.23,201.08,24.8761]
[1755923746657,2.71,201.32,201.14,24.8684]
[1755923747566,2.71,201.32,201.18,4.9726]
[1755923747862,2.71,201.32,201.14,24.8684]
[1755923748063,2.71,201.32,201.16,29.8392]
[1755923748658,10.51293057,201.4,201.09,116.78657788]
[1755923748659,4.995,201.7,201.4,2.71]
[1755923748859,2.71,201.63,201.4,0.21]
[1755923749059,2.71,201.58,201.34,334.52]
[1755923749261,10.51293057,201.53,201.31,29.8172]
[1755923749455,2.71,201.52,201.28,24.8513]
[1755923749661,2.71,201.51,201.26,8.01293057]
[1755923749862,2.71,201.47,201.24,334.52]
[1755923750060,4.9661,201.45,201.23,24.8577]
[1755923750364,2.71,201.44,201.19,24.8627]
[1755923750560,2.71,201.44,201.24,24.856]
[1755923750862,2.71,201.53,201.36,0.21]
[1755923752364,2.71,201.53,201.37,0.21]
[1755923752561,146.12,201.61,201.41,10.51293057]
[1755923752766,2.71,201.6,201.42,0.21]
[1755923753763,2.71,201.6,201.43,29.7995]
[1755923754366,2.71,201.6,201.43,4.9665]
[1755923755659,2.71,201.6,201.43,29.7992]
[1755923755859,2.71,201.6,201.42,0.21]
[1755923756058,2.71,201.6,201.41,8.22293057]
[1755923757468,4.9627,201.59,201.41,8.22293057]
[1755923757665,27.5227,201.6,201.36,10.51293057]
[1755923757968,2.71,201.58,201.36,10.51293057]
[1755923758374,2.71,201.54,201.37,4.968]
[1755923758564,145.92,201.63,201.27,479.38]
[1755923758565,2.71,201.71,201.45,24.8298]
[1755923758766,29.7642,201.67,201.44,24.8313]
[1755923759064,29.7642,201.67,201.47,4.9655]
[1755923759065,2.71,201.66,201.47,4.9655]
[1755923759863,4.9612,201.65,201.44,29.7976]
[1755923760065,2.71,201.64,201.44,29.7976]
[1755923760264,2.71,201.64,201.44,4.9663]
[1755923760460,24.8062,201.65,201.42,10.51293057]
[1755923760461,2.71,201.62,201.42,10.51293057]
[1755923761367,2.71,201.62,201.42,8.01293057]
[1755923761568,2.71,201.62,201.38,24.8383]
[1755923761867,2.71,201.61,201.38,24.8383]
[1755923762075,2.71,201.59,201.4,4.9672]
[1755923762266,2.71,201.59,201.38,24.8383]
[1755923762466,29.7777,201.58,201.38,29.806]
[1755923762669,2.71,201.57,201.38,29.806]
[1755923763168,2.71,201.57,201.4,4.9671]
[1755923763374,4.9634,201.56,201.37,10.51293057]
[1755923763672,2.78,201.55,201.35,24.8429]
[1755923763861,2.78,201.55,201.36,4.9681]
[1755923764267,2.78,201.53,201.33,24.8443]
[1755923764462,2.78,201.53,201.35,4.9683]
[1755923764463,2.78,201.52,201.35,4.9683]
[1755923765575,2.78,201.52,201.35,29.8111]
[1755923765773,2.78,201.52,201.35,4.9683]
[1755923765971,2.78,201.52,201.35,2.4683]
[1755923766570,2.78,201.52,201.37,4.9679]
[1755923766767,2.78,201.58,201.37,10.51293057]
[1755923766970,2.78,201.58,201.42,15.47973057]
[1755923767276,2.78,201.58,201.42,4.9668]
[1755923767872,2.78,201.58,201.42,10.51293057]
[1755923768373,145.02,201.61,201.42,10.51293057]
[1755923768676,2.78,201.6,201.42,10.51293057]
[1755923768975,2.78,201.6,201.48,4.9652]
[1755923769165,2.78,201.6,201.46,24.8293]
[1755923769370,2.78,201.65,201.46,24.8293]
[1755923769972,2.78,201.65,201.49,24.8252]
[1755923770269,2.78,201.65,201.5,4.76821778]
[1755923770466,10.51293057,201.76,201.57,10.51293057]
[1755923770467,2.78,201.76,201.57,10.51293057]
[1755923770668,2.78,201.76,201.58,4.76703281]
[1755923770868,2.78,201.76,201.63,4.9615]
[1755923771276,2.78,201.76,201.58,24.8136]
[1755923771575,2.78,201.76,201.65,4.961]
[1755923771775,2.78,201.76,201.58,24.8136]
[1755923772078,2.78,201.76,201.53,24.8196]
[1755923772369,2.78,201.75,201.55,24.8183]
[1755923772570,2.78,201.74,201.52,10.51293057]
[1755923772770,2.78,201.74,201.53,2.27048784]
[1755923772973,4.9593,201.73,201.56,29.7801]
[1755923773174,2.78,201.72,201.51,24.8223]
[1755923773377,2.78,201.72,201.52,24.8219]
[1755923773578,2.78,201.72,201.55,29.7817]
[1755923773779,147.94,201.72,201.55,24.8182]
[1755923774477,147.94,201.72,201.57,24.8158]
[1755923774773,2.78,201.72,201.58,24.8143]
[1755923775575,2.78,201.72,201.61,4.962]
[1755923778074,2.78,201.78,201.59,24.8129]
[1755923778578,2.78,201.75,201.61,4.9621]
[1755923779476,2.78,201.75,201.63,4.9615]
[1755923779681,2.78,201.75,201.61,24.8105]
[1755923779979,2.78,201.75,201.64,4.9613]
[1755923782068,2.78,201.75,201.57,24.8157]
[1755923782682,2.78,201.75,201.56,24.6968]
[1755923782882,2.78,201.75,201.56,22.2268]
[1755923784378,2.78,201.75,201.63,4.9615]
[1755923784583,2.78,201.75,201.56,22.2268]
[1755923784982,2.78,201.75,201.6,4.9623]
[1755923785186,2.78,201.75,201.58,24.8142]
[1755923785575,2.78,201.75,201.58,23.6942]
[1755923785784,2.78,201.75,201.62,4.9618]
[1755923785983,2.78,201.74,201.52,24.8217]
[1755923786175,2.78,201.74,201.53,4.76042036]
[1755923786381,2.78,201.74,201.54,4.76042036]
[1755923786577,2.78,201.74,201.55,4.76819886]
[1755923786781,2.78,201.74,201.56,4.76819886]
[1755923787080,0.58516961,201.8,201.58,10.51293057]
[1755923787286,2.78,201.79,201.59,9.62690228]
[1755923787475,2.78,201.79,201.65,4.9611]